bitfinex-derivatives/quotes_ETHF0:USTF0_20250530
["timestamp","ask_amount","ask_price","bid_price","bid_amount"]
[1748647278576,0.06993857,2527.6,2527.5,0.79107]
[1748647278964,0.00593566,2527.7,2527.6,0.79104]
[1748647279371,3.2078,2528.3,2528.2,0.79085]
[1748647279662,1.85941,2528.7,2527.9,1.97729]
[1748647279663,3.2078,2528.7,2528.0,1.3361]
[1748647279972,0.06993857,2527.5,2527.4,1.0496]
[1748647280172,0.06993857,2527.5,2527.4,0.7911]
[1748647280475,0.06993857,2527.5,2527.4,2.1272]
[1748647280966,0.06993857,2527.5,2527.3,0.00593566]
[1748647281171,0.06993857,2527.5,2527.4,0.7911]
[1748647281370,0.06993857,2527.5,2527.3,0.00593566]
[1748647281565,0.7911,2527.4,2527.3,0.00593566]
[1748647281768,0.06993857,2527.5,2527.3,0.00593566]
[1748647281966,0.7911,2527.4,2527.3,0.00593566]
[1748647282180,0.7911,2527.4,2527.3,0.79706566]
[1748647282366,0.7911,2527.4,2527.3,0.00593566]
[1748647282575,1.97798,2527.2,2526.7,0.79132]
[1748647282774,3.99904,2527.0,2526.4,4.2666]
[1748647282974,3.2078,2527.0,2526.9,0.79125]
[1748647283472,0.06993857,2527.5,2527.4,0.7911]
[1748647283681,3.27773857,2527.5,2527.4,0.7911]
[1748647283982,0.06993857,2527.5,2527.2,0.00593566]
[1748647284181,3.27773857,2527.5,2527.2,0.00593566]
[1748647284372,3.27773857,2527.5,2527.3,0.7911]
[1748647284573,4.06881857,2527.5,2527.4,0.7911]
[1748647284878,0.79111,2527.4,2527.3,0.79111]
[1748647285072,3.27773857,2527.5,2527.2,0.00593566]
[1748647285273,0.79111,2527.4,2527.3,0.79112]
[1748647285580,0.79113,2527.3,2527.2,0.00593566]
[1748647285781,5.0,2527.3,2526.3,1.3391]
[1748647285981,3.2078,2527.0,2526.9,0.79125]
[1748647286687,3.2078,2527.3,2527.0,1.97807]
[1748647286878,0.06993857,2527.5,2527.4,0.7911]
[1748647287077,8.57e-06,2527.5,2527.4,3.9989]
[1748647287579,3.2078,2528.0,2527.9,0.79094]
[1748647287881,5.4964066,2528.7,2527.9,0.79094]
[1748647288185,5.4964066,2528.7,2528.1,0.79085]
[1748647288186,0.79083,2528.3,2528.1,0.79085]
[1748647288485,0.79093,2528.0,2527.9,0.79687566]
[1748647288674,3.2078,2528.4,2527.9,0.79687566]
[1748647288982,0.79091,2528.0,2527.9,0.00593566]
[1748647289489,5.79091,2528.0,2527.9,0.00593566]
[1748647290001,0.79111,2527.4,2527.3,0.79112]
[1748647290196,3.2078,2527.4,2527.3,0.79113]
[1748647291099,1.2666,2528.0,2527.9,0.79094]
[1748647291396,5.26523,2528.3,2528.2,0.79085]
[1748647291598,3.2078,2528.3,2528.2,0.79085]
[1748647292588,0.00593566,2528.5,2528.4,0.79079]
[1748647292900,0.00593566,2528.5,2528.3,0.7908]
[1748647293095,3.2078,2528.4,2528.0,1.2444]
[1748647293298,3.2078,2528.1,2527.9,0.79092]
[1748647293501,3.2078,2528.1,2528.0,0.79091]
[1748647293704,3.2078,2528.1,2527.8,1.97745]
[1748647293705,1.3353,2528.3,2528.2,0.79085]
[1748647294003,3.2078,2528.4,2527.9,1.2681]
[1748647294208,3.2078,2528.1,2527.6,1.97761]
[1748647294502,0.79087,2528.2,2528.1,0.79087]
[1748647294804,0.79084,2528.3,2528.2,0.79083]
[1748647295098,1.3353,2528.3,2528.2,0.79083]
[1748647295303,0.86664423,2528.5,2528.4,0.79079]
[1748647295502,0.07587423,2528.5,2528.4,0.79079]
[1748647295797,0.07587423,2528.5,2528.3,0.79081]
[1748647296101,3.2078,2528.4,2528.0,1.2681]
[1748647296301,4.45,2528.4,2528.3,0.79082]
[1748647296505,0.07587423,2528.5,2528.4,0.79079]
[1748647297003,0.86663423,2528.5,2528.4,0.79079]
[1748647297190,0.07587423,2528.5,2528.4,0.79079]
[1748647297590,3.2078,2529.0,2528.9,0.79064]
[1748647298396,3.2078,2529.7,2528.8,1.97668]
[1748647298592,0.00593566,2529.5,2529.2,1.97636]
[1748647298805,0.00593566,2529.5,2529.4,0.79048]
[1748647299297,0.79057,2529.1,2529.0,3.21373566]
[1748647299604,3.2078,2529.4,2529.0,0.00593566]
[1748647299803,3.2078,2529.4,2529.3,0.79051]
[1748647300000,1.3657,2529.8,2529.7,0.79039]
[1748647300200,0.00593566,2529.6,2529.5,0.79045]
[1748647300697,0.00593566,2529.6,2529.3,3.2078]
[1748647300698,0.00593566,2529.6,2529.4,2.13426]
[1748647300896,0.79636566,2529.6,2529.4,0.79047]
[1748647301096,3.21373566,2529.6,2529.1,1.3438]
[1748647301300,0.79051,2529.4,2529.2,0.79054]
[1748647301493,1.3657,2529.5,2529.1,1.3438]
[1748647301702,1.3657,2529.5,2529.0,3.21373566]
[1748647301904,0.79054,2529.2,2529.0,3.21373566]
[1748647302104,0.79057,2529.1,2529.0,0.00593566]
[1748647302503,3.2078,2529.2,2529.0,0.00593566]
[1748647302798,0.79057,2529.1,2529.0,0.79652566]
[1748647303002,3.2078,2529.1,2529.0,0.79654566]
[1748647303208,0.00593566,2529.6,2529.1,1.97644]
[1748647303399,3.2078,2529.3,2529.0,0.00593566]
[1748647303600,0.00593566,2529.6,2529.0,0.00593566]
[1748647303601,0.79057,2529.1,2529.0,0.00593566]
[1748647303997,5.79057,2529.1,2529.0,0.00593566]
[1748647304200,7.11477,2529.1,2529.0,0.00593566]
[1748647304510,8.30067,2529.1,2528.3,1.3661]
[1748647304804,0.79079,2528.4,2528.3,1.3661]
[1748647305104,3.2078,2528.6,2528.1,8.634]
[1748647305299,0.79085,2528.3,2528.2,0.79084]
[1748647305499,1.31793857,2528.5,2528.1,8.634]
[1748647305803,0.06993857,2528.5,2528.4,0.79079]
[1748647306103,0.06993857,2528.5,2528.2,5.18495]
[1748647306104,3.2078,2528.6,2528.5,0.79076]
[1748647306299,2.7078,2528.6,2528.5,0.79076]
[1748647306501,2.2795,2528.6,2528.5,0.79076]
[1748647306701,0.7907,2528.7,2528.6,0.79071]
[1748647306894,3.2078,2528.9,2528.4,1.97699]
[1748647307206,1.248,2528.8,2528.7,0.7907]
[1748647307409,0.79073,2528.6,2528.5,1.2427]
[1748647307599,3.2078,2529.4,2528.6,1.97684]
[1748647307800,0.79059,2529.1,2528.6,1.97684]
[1748647308099,1.248,2529.0,2528.9,0.79064]
[1748647308300,3.2078,2529.4,2528.9,0.79064]
[1748647308498,1.2654,2529.3,2529.2,0.79054]
[1748647308694,3.99828,2529.4,2529.3,0.79051]
[1748647308897,3.2078,2529.4,2528.9,1.2886]
[1748647309295,0.79054,2529.3,2529.2,0.79054]
[1748647309507,0.79054,2529.2,2529.0,0.79059]
[1748647309707,0.79066,2528.9,2528.4,6.25466]
[1748647309911,0.79067,2528.8,2528.7,0.79068]
[1748647310202,0.79067,2528.8,2528.4,6.25466]
[1748647310203,3.2078,2528.8,2528.4,3.2078]
[1748647310405,3.2078,2528.5,2528.2,8.353]
[1748647310710,3.2078,2528.6,2528.5,0.79076]
[1748647310903,3.2078,2528.6,2528.5,2.07936]
[1748647311098,3.2078,2528.6,2527.9,5.18515]
[1748647311298,0.79086,2528.2,2528.1,1.2427]
[1748647311710,0.79089,2528.1,2527.7,8.353]
[1748647312001,2.03849,2528.1,2527.7,8.353]
[1748647312409,6.2476,2528.1,2527.3,41.1177]
[1748647312709,0.79109,2527.5,2527.3,41.1177]
[1748647312909,0.79117,2527.3,2527.0,8.353]
[1748647313097,3.2078,2527.1,2526.6,1.0611]
[1748647313302,0.79125,2527.0,2526.9,0.79125]
[1748647313511,3.2078,2527.1,2527.0,0.79123]
[1748647313908,0.79114,2527.3,2527.2,0.79115]
[1748647314206,0.79133,2526.7,2526.6,0.00593566]
[1748647314510,3.99913,2526.7,2526.6,0.00593566]
[1748647315103,3.2078,2526.7,2526.6,0.79729566]
[1748647315402,0.00593566,2526.9,2526.8,0.79129]
[1748647315799,0.1978,2527.3,2527.2,0.79117]
[1748647316511,2.30405,2527.3,2527.1,0.79119]
[1748647316705,1.5129,2527.3,2527.2,0.79117]
[1748647317614,0.1978,2527.3,2527.2,0.79117]
[1748647319011,0.1978,2527.3,2526.9,1.2456]
[1748647319511,2.30805,2527.3,2527.2,0.79117]
[1748647319715,2.30805,2527.3,2526.6,0.00593566]
[1748647319716,3.49478,2527.3,2526.6,0.00593566]
[1748647319903,0.79131,2526.8,2526.7,0.79131]
[1748647320504,0.79133,2526.7,2526.6,0.79727566]
[1748647320710,3.99913,2526.7,2526.6,0.00593566]
[1748647320904,3.2078,2526.7,2526.6,0.00593566]
[1748647321103,3.99913,2526.7,2526.6,0.00593566]
[1748647321302,5.32663,2526.7,2526.6,0.00593566]
[1748647321518,1.97855,2526.5,2525.7,0.79163]
[1748647321705,1.97855,2526.5,2525.3,5.18715]
[1748647321706,3.2078,2526.0,2525.6,0.79165]
[1748647322013,3.99944,2525.7,2525.6,0.0791891]
[1748647322211,1.3275,2525.9,2525.8,0.79161]
[1748647322809,3.2078,2526.0,2525.6,0.08512476]
[1748647322810,3.2078,2526.0,2525.9,0.79158]
[1748647323113,0.79162,2525.8,2525.7,0.79162]
[1748647323308,0.79164,2525.7,2525.6,0.08512476]
[1748647323507,0.79164,2525.7,2524.6,1.97997]
[1748647323508,1.97926,2525.6,2524.6,1.97997]
[1748647323809,3.2078,2525.5,2525.1,1.97958]
[1748647324117,3.2078,2526.0,2525.9,0.79158]
[1748647324507,3.2078,2526.3,2526.0,0.79155]
[1748647324809,1.88348,2526.9,2526.8,0.79127]
[1748647324810,3.2078,2526.9,2526.8,0.79127]
[1748647325007,3.2078,2527.1,2526.6,1.9784]
[1748647325313,1.333,2527.2,2527.1,0.7912]
[1748647325506,1.333,2527.2,2527.0,0.79121]
[1748647325709,3.2078,2527.1,2526.9,0.79126]
[1748647325912,1.333,2527.0,2526.3,1.97864]
[1748647326205,1.333,2527.0,2526.9,0.79126]
[1748647326413,3.2078,2527.1,2527.0,0.79123]
[1748647327004,3.2078,2527.1,2526.3,5.18637]
[1748647327212,3.2078,2526.8,2526.7,0.79133]
[1748647327402,0.1978,2527.3,2527.2,0.79117]
[1748647327403,1.5221,2527.3,2527.2,0.79117]
[1748647327613,0.1978,2527.3,2527.2,0.79117]
[1748647328417,0.1978,2527.3,2527.0,0.79715566]
[1748647328618,0.79119,2527.2,2527.1,0.7912]
[1748647328816,1.3243,2527.2,2527.1,0.7912]
[1748647329119,0.1978,2527.3,2527.2,0.79117]
[1748647329413,0.1978,2527.3,2527.0,0.00593566]
[1748647329612,1.2874,2527.2,2527.0,0.00593566]
[1748647329917,0.7912,2527.1,2527.0,0.00593566]
[1748647330311,5.7912,2527.1,2527.0,0.00593566]
[1748647330620,0.7914,2526.5,2526.3,1.2379]
[1748647330821,3.2078,2526.7,2526.6,0.79136]
[1748647331019,0.79141,2526.5,2526.3,2.02933]
[1748647331311,1.2874,2526.6,2526.1,3.2078]
[1748647331513,4.4952,2526.4,2526.1,0.00593566]
[1748647331710,0.79148,2526.2,2526.1,0.00593566]
[1748647331916,5.79148,2526.2,2526.1,0.00593566]
[1748647333116,5.0,2526.2,2524.8,3.12066]
[1748647333321,8.45237,2526.4,2524.8,3.12066]
[1748647333322,3.99955,2525.4,2525.3,0.79175]
[1748647333618,3.2078,2525.4,2525.0,1.2759]
[1748647333819,3.2078,2525.1,2525.0,2.06776]
[1748647334020,0.00593566,2525.3,2525.2,0.7918]
[1748647334218,0.00593566,2525.3,2525.0,1.2759]
[1748647334219,0.00593566,2525.3,2525.1,0.79182]
[1748647334516,3.21373566,2525.3,2525.0,1.2759]
[1748647334722,0.00593566,2525.3,2525.2,0.7918]
[1748647334916,0.00593566,2525.3,2525.0,1.2759]
[1748647335117,3.21373566,2525.3,2525.2,0.7918]
[1748647335418,0.79183,2525.1,2525.0,1.2759]
[1748647335720,0.00593566,2525.3,2524.8,1.98372708]
[1748647335919,5.66e-06,2525.3,2525.2,3.9996]
[1748647336222,5.66e-06,2525.3,2525.2,11.7946]
[1748647336423,5.66e-06,2525.3,2525.2,16.7946]
[1748647337520,5.66e-06,2525.3,2525.2,13.5868]
[1748647337721,5.66e-06,2525.3,2525.2,8.5868]
[1748647338624,0.79184,2525.1,2524.9,4.4833]
[1748647338825,3.2078,2525.1,2524.8,0.00395708]
[1748647339117,3.2078,2525.1,2524.2,0.7921]
[1748647339118,0.79207,2524.4,2524.2,0.7921]
[1748647339323,1.3504,2524.3,2523.8,1.98058]
[1748647339522,1.5484,2524.3,2524.2,0.79211]
[1748647339725,1.5484,2524.3,2523.8,0.07924558]
[1748647339921,3.2078,2524.0,2523.9,0.7922]
[1748647340126,3.2078,2524.0,2523.9,1.3601]
[1748647340423,3.2078,2524.0,2523.9,2.1523]
[1748647340929,2.34049,2524.3,2524.1,0.79214]
[1748647341225,3.2078,2524.2,2523.8,0.08517558]
[1748647341522,1.5484,2524.3,2523.8,0.08517558]
[1748647341523,4.0,2523.9,2523.8,0.08517558]
[1748647341922,0.79228,2523.7,2522.9,1.2455]
[1748647342218,3.2078,2523.1,2523.0,0.8717607]
[1748647343525,3.2078,2523.1,2523.0,0.0792707]
[1748647343827,0.00593566,2523.3,2523.0,0.0792707]
[1748647344026,0.00593566,2523.3,2523.2,0.79242]
[1748647346422,0.00593566,2523.3,2523.2,5.79242]
[1748647346628,3.2078,2523.8,2523.1,3.2078]
[1748647346923,3.2078,2523.5,2523.1,3.2078]
[1748647347223,3.2078,2523.5,2523.4,0.79236]
[1748647347424,3.2078,2523.8,2523.7,0.79227]
[1748647347622,3.2078,2523.8,2523.5,0.79825566]
[1748647347821,3.2078,2523.8,2523.7,0.79227]
[1748647348022,3.2078,2523.8,2523.5,0.00593566]
[1748647348226,0.7923,2523.6,2523.5,0.00593566]
[1748647348621,3.2078,2523.8,2523.5,0.00593566]
[1748647348828,3.2078,2523.8,2523.7,0.79227]
[1748647349731,4.00005,2523.8,2523.5,0.00593566]
[1748647350025,3.2078,2523.8,2523.7,0.79227]
[1748647350629,0.198,2524.3,2524.2,0.79211]
[1748647350830,0.198,2524.3,2524.2,3.99991]
[1748647351124,3.2078,2524.8,2524.7,0.79195]
[1748647351328,3.2078,2525.1,2524.5,3.2078]
[1748647351528,0.79201,2524.6,2524.4,0.79202]
[1748647351724,0.79203,2524.5,2524.4,0.79203]
[1748647351927,0.79203,2524.5,2524.4,0.79204]
[1748647352230,0.79198,2524.7,2524.6,0.79198]
[1748647352430,0.79208,2524.3,2524.2,0.79209]
[1748647352634,3.21373566,2525.1,2525.0,0.79186]
[1748647352848,0.00593566,2525.1,2525.0,0.79186]
[1748647353328,3.21373566,2525.1,2525.0,0.79186]
[1748647353523,0.79189,2524.9,2524.8,0.00593566]
[1748647353924,0.79206,2524.4,2523.9,1.98052]
[1748647354231,0.79206,2524.4,2524.3,0.79207]
[1748647354530,5.38547,2525.0,2524.5,0.792]
[1748647354731,0.79198,2524.6,2524.5,0.792]
[1748647354932,3.4058,2525.0,2524.3,0.00593566]
[1748647355128,0.79191,2524.9,2524.3,1.98610566]
[1748647355327,3.2078,2524.7,2524.3,1.98610566]
[1748647355532,0.198,2525.0,2524.5,1.97997]
[1748647355724,0.198,2525.0,2524.9,3.99969]
[1748647355924,1e-08,2525.1,2525.0,0.79186]
[1748647356139,1e-08,2525.1,2525.0,7.07676]
[1748647356435,1e-08,2525.1,2525.0,8.22756]
[1748647356823,4.16854454,2526.9,2525.0,8.22756]
[1748647356824,0.79135,2526.7,2526.4,0.79142]
[1748647357027,0.00593566,2526.8,2526.5,3.2078]
[1748647357236,5.1862,2526.7,2525.8,1.176]
[1748647357427,5.1862,2526.7,2525.2,3.2078]
[1748647357428,3.2078,2526.3,2525.7,1.2646]
[1748647357628,3.2078,2526.3,2525.7,2.05623]
[1748647357824,3.2078,2526.3,2525.4,7.269]
[1748647358033,3.2078,2525.8,2525.2,3.2078]
[1748647358328,3.2078,2525.8,2525.2,3.21373566]
[1748647358729,3.2078,2526.1,2525.2,0.00593566]
[1748647358929,3.2078,2526.2,2525.2,0.00593566]
[1748647359135,5.18656,2526.2,2525.6,0.79164]
[1748647359337,5.18656,2526.2,2525.2,0.00593566]
[1748647359527,0.79166,2525.7,2525.2,0.00593566]
[1748647359727,0.79176,2525.3,2525.2,0.00593566]
[1748647359936,0.00593566,2525.5,2525.4,0.79173]
[1748647361132,0.00593566,2525.5,2525.2,0.00593566]
[1748647361326,0.00593566,2525.5,2525.4,0.79173]
[1748647361531,0.79173,2525.4,2525.2,0.79772566]
[1748647361733,0.79176,2525.3,2525.2,0.00593566]
[1748647362436,0.79194,2524.8,2524.6,1.2682]
[1748647362638,0.79185,2525.1,2524.9,0.79188]
[1748647362934,0.79184,2525.1,2524.9,0.79188]
[1748647363132,0.06993857,2525.1,2524.6,1.2682]
[1748647363332,1.31603857,2525.1,2524.9,0.79188]
[1748647363638,0.79192,2524.8,2524.6,2.06017]
[1748647363933,1.31603857,2525.1,2524.8,0.7919]
[1748647364238,1.31603857,2525.1,2524.7,1.2708]
[1748647364538,0.06993857,2525.1,2525.0,0.79186]
[1748647364930,0.06993857,2525.1,2525.0,5.79186]
[1748647365930,0.79764566,2525.5,2525.0,5.79186]
[1748647365931,0.00593566,2525.5,2525.4,0.79173]
[1748647366131,0.00593566,2525.5,2525.4,3.99953]
[1748647366327,0.00593566,2525.5,2525.4,8.99953]
[1748647366529,3.2078,2526.4,2526.3,0.79145]
[1748647366732,2.13563,2526.7,2526.5,0.79137]
[1748647366933,0.79136,2526.6,2526.5,0.79137]
[1748647367135,3.2078,2526.8,2526.6,0.79136]
[1748647367339,3.99912,2526.8,2526.6,0.79136]
[1748647367535,2.13555,2527.0,2526.8,0.79128]
[1748647367739,0.00593566,2527.0,2526.9,3.99906]
[1748647368046,1.3443,2527.4,2527.3,0.79114]
[1748647368237,3.2078,2527.8,2527.3,0.79114]
[1748647368543,1.3443,2527.7,2527.2,0.79115]
[1748647368730,1.97778,2527.4,2526.6,7.008]
[1748647368933,0.79119,2527.2,2527.0,0.79121]
[1748647369134,2.10846,2527.3,2526.9,3.2078]
[1748647369534,0.79121,2527.1,2526.6,10.2158]
[1748647369838,3.2078,2526.9,2526.4,0.00593566]
[1748647370050,0.79139,2526.5,2526.4,0.00593566]
[1748647370432,7.10869,2526.5,2526.4,0.00593566]
[1748647370640,0.79157,2526.0,2525.6,1.3699]
[1748647370832,1.3173,2526.5,2525.6,1.3699]
[1748647371040,4.5251,2526.5,2525.6,1.3699]
[1748647371239,1.97882,2526.1,2525.5,3.2078]
[1748647371547,3.2078,2525.8,2525.5,0.00593566]
[1748647371745,0.79164,2525.7,2525.5,0.00593566]
[1748647372042,0.79167,2525.6,2525.5,0.00593566]
[1748647373039,1.3617,2525.7,2525.5,0.00593566]
[1748647373040,1.3617,2525.7,2525.5,0.79761566]
[1748647373244,0.79167,2525.6,2525.5,0.79762566]
[1748647373747,0.79167,2525.6,2525.5,0.00593566]
[1748647374446,1.9793,2525.5,2524.9,5.33718]
[1748647374649,0.79186,2525.0,2524.9,5.33718]
[1748647374844,0.79185,2525.1,2524.9,5.33718]
[1748647375141,1.97965,2525.0,2524.2,3.2078]
[1748647375354,3.2078,2524.4,2524.3,0.79208]
[1748647375750,3.2078,2524.4,2524.2,2.05799]
[1748647375955,3.99987,2524.4,2524.3,0.79208]
[1748647376245,0.00593566,2524.6,2524.5,0.79202]
[1748647376452,0.79202,2524.5,2524.4,1.2659]
[1748647376950,0.79205,2524.4,2524.3,0.79206]
[1748647377147,0.79208,2524.3,2524.2,1.2659]
[1748647377440,0.00593566,2524.6,2524.2,1.2659]
[1748647377645,0.79203,2524.5,2524.4,0.79203]
[1748647377836,0.00593566,2524.6,2524.5,0.79202]
[1748647378238,0.00593566,2524.6,2524.5,5.79202]
[1748647378440,0.00593566,2524.6,2524.5,0.79202]
[1748647379242,3.2078,2525.3,2525.1,0.79181]
[1748647379540,0.79183,2525.2,2525.1,0.79181]
[1748647380042,3.2078,2525.3,2525.2,0.7918]
[1748647380248,0.79181,2525.2,2525.1,0.7918]
[1748647380448,3.2078,2525.3,2525.2,0.7918]
[1748647380643,0.00593566,2525.5,2525.4,0.79173]
[1748647383951,0.79162,2525.8,2525.7,0.79161]
[1748647384146,3.2078,2525.9,2525.0,0.00593566]
[1748647384352,0.79183,2525.1,2525.0,0.00593566]
[1748647384748,1.2582,2525.1,2525.0,0.79779566]
[1748647385150,3.2078,2525.2,2525.1,0.79183]
[1748647385356,3.2078,2525.2,2525.1,2.03083]
[1748647385558,3.2078,2525.2,2525.1,7.03083]
[1748647385757,0.00593566,2525.3,2525.2,0.7918]
[1748647386064,0.00593566,2525.3,2525.2,5.7918]
[1748647386257,1.2009,2526.2,2525.2,5.7918]
[1748647386258,3.2078,2526.1,2525.6,1.97917]
[1748647386556,3.2078,2526.5,2526.4,0.79142]
[1748647386850,3.2078,2526.5,2525.9,5.1867]
[1748647387057,0.79143,2526.4,2526.1,1.2823]
[1748647387254,0.79143,2526.4,2526.3,0.79145]
[1748647387655,0.79143,2526.4,2526.1,1.2823]
[1748647387860,4.48763566,2526.5,2526.1,1.2823]
[1748647388255,3.2078,2527.2,2527.0,0.79121]
[1748647388455,3.2078,2527.2,2526.6,1.97836]
[1748647388654,3.99899,2527.2,2526.7,1.97832]
[1748647388856,3.99899,2527.2,2527.1,0.7912]
[1748647388857,3.2078,2527.2,2527.1,0.7912]
[1748647389049,1.2739,2527.4,2526.8,1.2823]
[1748647389251,1.2739,2527.4,2527.3,0.79114]
[1748647389454,1.27983566,2527.4,2527.3,0.79114]
[1748647389660,2.07094566,2527.4,2527.2,0.79114]
[1748647389861,2.07094566,2527.4,2527.0,1.2823]
[1748647390062,0.00593566,2527.4,2527.3,0.79114]
[1748647390262,0.79704566,2527.4,2527.3,0.79114]
[1748647390661,0.00593566,2527.4,2527.3,0.79114]
[1748647391255,0.00593566,2527.4,2527.1,0.79117]
[1748647391458,0.00593566,2527.4,2526.9,6.753]
[1748647391759,0.79126,2526.9,2526.8,0.00593566]
[1748647392265,8.99906,2526.9,2526.8,0.00593566]
[1748647392456,3.99906,2526.9,2526.8,0.00593566]
[1748647393067,8.99906,2526.9,2526.8,5.66e-06]
[1748647393270,0.79161,2525.9,2525.2,3.2078]
[1748647393464,1.97852,2526.5,2525.5,1.97923]
[1748647393465,3.2078,2526.1,2525.5,1.97923]
[1748647393665,1.9786,2526.4,2525.6,3.32112]
[1748647393666,1.3095,2526.2,2525.6,3.32112]
[1748647393965,1.3095,2526.0,2525.6,1.342]
[1748647394161,0.79159,2525.9,2525.6,1.342]
[1748647394357,2.10107,2526.0,2525.8,0.79158]
[1748647394562,3.28844,2526.0,2525.5,0.00593566]
[1748647394764,3.99947,2525.6,2525.5,0.00593566]
[1748647395564,3.99947,2525.6,2525.5,0.79763566]
[1748647395565,3.2078,2525.6,2525.5,0.79763566]
[1748647396165,0.79167,2525.6,2525.5,0.00593566]
[1748647396366,3.99947,2525.6,2525.5,0.00593566]
[1748647396572,0.79167,2525.6,2525.5,0.00593566]
[1748647396866,3.99947,2525.6,2525.5,0.00593566]
[1748647397464,3.2078,2525.9,2525.5,0.00593566]
[1748647397666,0.79166,2525.7,2525.6,0.79165]
[1748647398068,3.2078,2525.9,2525.8,0.79161]
[1748647398266,3.2078,2525.9,2525.5,0.00593566]
[1748647398267,0.79162,2525.8,2525.7,0.79162]
[1748647398770,0.79167,2525.6,2525.5,0.00593566]
[1748647399762,6.9792,2525.6,2524.5,3.2078]
[1748647399967,3.2078,2525.2,2524.5,6.752]
[1748647400170,1.35,2525.1,2524.5,1.98001]
[1748647400469,0.79194,2524.8,2524.7,0.79194]
[1748647400670,0.79203,2524.5,2524.4,0.79202]
[1748647400975,0.792,2524.6,2524.5,0.79199]
[1748647401272,0.79791566,2524.7,2524.6,0.79198]
[1748647401671,1.98587566,2524.7,2524.2,0.00593566]
[1748647401865,0.79208,2524.3,2524.2,0.00593566]
[1748647402266,0.79225,2523.8,2523.7,0.79226]
[1748647402474,1.98032,2524.2,2523.3,1.3099]
[1748647402475,1.98044,2524.0,2523.3,1.3099]
[1748647402676,0.79231,2523.6,2523.3,1.3099]
[1748647402970,0.79231,2523.6,2523.5,0.79233]
[1748647403169,1.98075,2523.6,2522.9,1.2313]
[1748647403372,1.98052,2523.9,2522.9,1.2313]
[1748647403373,3.2078,2523.4,2523.0,0.00593566]
[1748647403577,3.2078,2523.8,2523.7,0.79227]
[1748647403874,1.225,2524.4,2524.2,0.7921]
[1748647404067,1.9802,2524.3,2523.3,3.2078]
[1748647404274,1.98052,2523.9,2523.3,1.3099]
[1748647404470,3.2078,2523.6,2523.0,6.75993566]
[1748647404673,5.18861,2523.6,2523.0,6.75993566]
[1748647404967,0.79246,2523.1,2523.0,6.75993566]
[1748647405172,0.00593566,2523.3,2523.1,0.79244]
[1748647405573,3.21373566,2523.3,2523.1,0.79244]
[1748647405873,3.21373566,2523.3,2523.0,0.00593566]
[1748647406172,3.21373566,2523.3,2523.0,0.79841566]
[1748647406372,3.21373566,2523.3,2523.0,0.00593566]
[1748647407168,0.79246,2523.1,2523.0,0.00593566]
[1748647407362,1.98146,2522.7,2521.8,4.5652]
[1748647407672,1.98132,2522.9,2522.3,0.79271]
[1748647407673,3.2078,2522.4,2522.3,0.79271]
[1748647407867,25.5369,2523.2,2522.4,0.79267]
[1748647408071,25.5369,2523.2,2521.9,1.3574]
[1748647408072,1.98138,2522.8,2521.9,2.15022]
[1748647408267,3.2078,2522.2,2521.4,3.2078]
[1748647408469,0.79284,2521.9,2521.2,1.98262]
[1748647408677,3.2078,2521.7,2521.6,0.7929]
[1748647408875,2.26217,2521.7,2521.6,0.7929]
[1748647409174,1.1758,2523.2,2522.0,3.2078]
[1748647409373,1.96822,2523.2,2523.1,3.2078]
[1748647409770,1.1758,2523.2,2523.1,3.2078]
[1748647409970,0.00594813,2523.4,2523.3,0.79239]
[1748647411676,0.00594813,2523.4,2523.1,4.00022]
[1748647411874,0.79242,2523.2,2523.1,3.2078]
[1748647412266,0.00594813,2523.4,2523.1,3.2078]
[1748647412470,8.13e-06,2523.4,2523.3,0.79239]
[1748647412665,0.79198,2524.7,2523.8,1.98056]
[1748647412885,2.2927084,2525.4,2524.6,3.2078]
[1748647413178,3.0844584,2525.4,2525.3,3.2078]
[1748647413372,0.79172,2525.5,2525.3,3.2078]
[1748647413676,1.1521,2525.6,2525.3,3.2078]
[1748647413875,1.1521,2525.6,2525.3,3.99955]
[1748647414073,1.94379,2525.6,2525.3,3.2078]
[1748647414279,1.1521,2525.6,2525.5,0.7917]
[1748647414465,0.0758867,2525.7,2525.6,0.79167]
[1748647414674,0.00594813,2525.7,2525.6,3.2078]
[1748647414875,0.08513409,2525.7,2525.6,3.99947]
[1748647415072,0.87677409,2525.7,2525.6,3.2078]
[1748647415376,0.08513409,2525.7,2525.6,3.2078]
[1748647415572,0.08513409,2525.7,2525.6,3.99947]
[1748647415773,0.08513409,2525.7,2525.6,3.2078]
[1748647416180,0.87677409,2525.7,2525.6,3.2078]
[1748647416476,5.87677409,2525.7,2525.6,3.2078]
[1748647416678,0.7918,2525.2,2525.1,0.00594813]
[1748647416978,0.7918,2525.2,2525.1,3.21374813]
[1748647417180,0.79179,2525.2,2525.1,3.21374813]
[1748647417779,0.79205,2524.4,2524.3,3.2078]
[1748647418170,0.79203,2524.5,2524.3,3.2078]
[1748647418478,3.2078,2525.1,2524.3,3.2078]
[1748647418782,3.2078,2525.1,2524.6,3.2078]
[1748647418979,0.79201,2524.5,2524.4,0.00594813]
[1748647419474,1.97958,2525.1,2524.4,0.00594813]
[1748647419475,3.99967,2525.0,2524.4,3.21374813]
[1748647419680,0.7918,2525.2,2524.8,3.2078]
[1748647419981,3.27773857,2525.4,2524.9,1.2697]
[1748647420279,3.27773857,2525.4,2524.9,2.06159]
[1748647420280,0.79183,2525.1,2524.9,2.06159]
[1748647420581,0.79186,2525.0,2524.9,1.2697]
[1748647420784,0.79189,2524.9,2524.8,3.2078]
[1748647421477,0.79187,2525.0,2524.8,3.2078]
[1748647421680,1.2867,2525.3,2524.8,3.2078]
[1748647421681,0.79189,2524.9,2524.8,3.2078]
[1748647422082,0.79201,2524.5,2524.4,0.00594813]